lending/lending_fUSD_20250408
["ID","MTS","AMOUNT","RATE_DAILY","PERIOD"]
[357524794,1744121448871,-500.0,0.00035616,2]
[357524795,1744121448881,-500.0,0.00035616,2]
[357524796,1744121448891,-500.0,0.00035616,2]
[357524797,1744121448900,-512.97478482,0.00035616,2]
[357524798,1744121448910,-500.0,0.00035616,2]
[357524799,1744121448919,-500.0,0.00035616,2]
[357524800,1744121448929,-717.86,0.00035616,2]
[357524801,1744121448939,-500.0,0.00035616,2]
[357524802,1744121448949,-500.0,0.00035616,2]
[357524803,1744121448960,-500.0,0.00035616,2]
[357524804,1744121448970,-500.0,0.00035616,2]
[357524805,1744121448980,-500.0,0.00035616,2]
[357524806,1744121448990,-500.0,0.00035616,2]
[357524807,1744121449000,-500.0,0.00035616,2]
[357524808,1744121449009,-500.0,0.00035616,2]
[357524809,1744121449020,-976.61,0.00035616,2]
[357524810,1744121449029,-500.0,0.00035616,2]
[357524811,1744121449040,-500.0,0.00035616,2]
[357524812,1744121449050,-500.0,0.00035616,2]
[357524813,1744121449059,-625.19,0.00035616,2]
[357524814,1744121449069,-500.0,0.00035616,2]
[357524815,1744121449078,-500.0,0.00035616,2]
[357524816,1744121449088,-500.0,0.00035616,2]
[357524817,1744121449098,-500.0,0.00035616,2]
[357524818,1744121449109,-500.0,0.00035616,2]
[357524819,1744121449119,-417.03931835,0.00035616,2]
[357524820,1744121449129,-626.3,0.00035616,2]
[357524821,1744121449139,-500.0,0.00035616,2]
[357524822,1744121449149,-500.0,0.00035616,2]
[357524823,1744121449159,-500.0,0.00035616,2]
[357524824,1744121449168,-500.0,0.00035616,2]
[357524825,1744121449178,-500.0,0.00035616,2]
[357524826,1744121449189,-413.51,0.00035616,2]
[357524827,1744121449199,-500.0,0.00035616,2]
[357524828,1744121449210,-500.0,0.00035616,2]
[357524829,1744121449221,-796.82,0.00035616,2]
[357524830,1744121449230,-769.2,0.00035616,2]
[357524831,1744121449240,-500.0,0.00035616,2]
[357524832,1744121449251,-500.0,0.00035616,2]
[357524833,1744121449262,-500.0,0.00035616,2]
[357524834,1744121449273,-500.0,0.00035616,2]
[357524835,1744121449285,-500.0,0.00035616,2]
[357524836,1744121449294,-500.0,0.00035616,2]
[357524837,1744121449304,-578.96,0.00035616,2]
[357524838,1744121449313,-595.89,0.00035616,2]
[357524839,1744121449323,-510.69583598,0.00035616,2]
[357524840,1744121449332,-500.0,0.00035616,2]
[357524841,1744121449341,-500.0,0.00035616,2]
[357524842,1744121449351,-500.0,0.00035616,2]
[357524843,1744121449360,-891.1,0.00035616,2]
[357524844,1744121449370,-500.0,0.00035616,2]
[357524845,1744121449380,-527.45,0.00035616,2]
[357524846,1744121449389,-796.7,0.00035616,2]
[357524847,1744121449399,-500.0,0.00035616,2]
[357524848,1744121449408,-500.0,0.00035616,2]
[357524849,1744121449418,-509.54768815,0.00035616,2]
[357524850,1744121449428,-530.15,0.00035616,2]
[357524851,1744121449437,-500.0,0.00035616,2]
[357524852,1744121449447,-500.0,0.00035616,2]
[357524853,1744121449456,-814.21,0.00035616,2]
[357524854,1744121449465,-500.0,0.00035616,2]
[357524855,1744121449475,-500.0,0.00035616,2]
[357524856,1744121449485,-500.0,0.00035616,2]
[357524857,1744121449495,-500.0,0.00035616,2]
[357524858,1744121449504,-500.0,0.00035616,2]
[357524859,1744121449514,-500.0,0.00035616,2]
[357524860,1744121449523,-500.0,0.00035616,2]
[357524861,1744121449533,-500.0,0.00035616,2]
[357524862,1744121449542,-507.18305013,0.00035616,2]
[357524863,1744121449551,-500.0,0.00035616,2]
[357524864,1744121449561,-500.0,0.00035616,2]
[357524865,1744121449570,-500.0,0.00035616,2]
[357524866,1744121449580,-500.0,0.00035616,2]
[357524867,1744121449589,-500.0,0.00035616,2]
[357524868,1744121449599,-500.0,0.00035616,2]
[357524869,1744121449609,-500.0,0.00035616,2]
[357524870,1744121449618,-570.42702448,0.00035616,2]
[357524871,1744121449628,-500.0,0.00035616,2]
[357524872,1744121449638,-500.0,0.00035616,2]
[357524873,1744121449647,-667.06,0.00035616,2]
[357524874,1744121449656,-500.0,0.00035616,2]
[357524875,1744121449665,-500.0,0.00035616,2]
[357524876,1744121449674,-500.0,0.00035616,2]
[357524877,1744121449683,-500.0,0.00035616,2]
[357524878,1744121449693,-500.0,0.00035616,2]
[357524879,1744121449702,-500.0,0.00035616,2]
[357524880,1744121449714,-500.0,0.00035616,2]
[357524881,1744121449723,-516.60263684,0.00035616,2]
[357524882,1744121449732,-613.56680317,0.00035616,2]
[357524883,1744121449742,-500.0,0.00035616,2]
[357524884,1744121449752,-525.96874371,0.00035616,2]
[357524885,1744121449761,-500.0,0.00035616,2]
[357524886,1744121449771,-500.0,0.00035616,2]
[357524887,1744121449779,-1087.9,0.00035616,2]
[357524888,1744121449789,-571.16,0.00035616,2]
[357524889,1744121449798,-500.0,0.00035616,2]
[357524890,1744121449807,-500.0,0.00035616,2]
[357524891,1744121449819,-500.0,0.00035616,2]
[357524892,1744121449828,-507.98763849,0.00035616,2]
[357524893,1744121449837,-500.0,0.00035616,2]
[357524894,1744121449846,-500.0,0.00035616,2]
[357524895,1744121449855,-544.69,0.00035616,2]
[357524896,1744121449865,-500.0,0.00035616,2]
[357524897,1744121449875,-505.77308166,0.00035616,2]
[357524898,1744121449884,-500.0,0.00035616,2]
[357524899,1744121449893,-366.24999149,0.00035616,2]
[357524900,1744121449949,-133.75000851,0.00035616,2]
[357524901,1744121449961,-500.0,0.00035616,2]
[357524902,1744121449970,-620.32,0.00035616,2]
[357524903,1744121449980,-500.0,0.00035616,2]
[357524904,1744121449989,-540.94,0.00035616,2]
[357524905,1744121449999,-500.0,0.00035616,2]
[357524906,1744121450009,-768.76,0.00035616,2]
[357524907,1744121450018,-501.87358631,0.00035616,2]
[357524908,1744121450027,-1080.18,0.00035616,2]
[357524909,1744121450037,-519.52729419,0.00035616,2]
[357524910,1744121450046,-500.0,0.00035616,2]
[357524911,1744121450055,-850.45,0.00035616,2]
[357524912,1744121450065,-532.37660546,0.00035616,2]
[357524913,1744121450074,-500.0,0.00035616,2]
[357524914,1744121450084,-503.94558712,0.00035616,2]
[357524915,1744121450093,-1227.77,0.00035616,2]
[357524916,1744121450106,-500.0,0.00035616,2]
[357524917,1744121450115,-500.0,0.00035616,2]
[357524918,1744121450124,-500.0,0.00035616,2]
[357524919,1744121450135,-500.0,0.00035616,2]
[357524920,1744121450221,-565.33,0.00035616,2]
[357524921,1744121450231,-500.0,0.00035616,2]
[357524922,1744121450240,-500.0,0.00035616,2]
[357524923,1744121450250,-660.48,0.00035616,2]
[357524924,1744121450259,-500.0,0.00035616,2]
[357524925,1744121450269,-500.0,0.00035616,2]
[357524926,1744121450279,-500.0,0.00035616,2]
[357524927,1744121450288,-500.0,0.00035616,2]
[357524928,1744121450297,-500.0,0.00035616,2]
[357524929,1744121450307,-518.9,0.00035616,2]
[357524930,1744121450316,-548.5,0.00035616,2]
[357524931,1744121450325,-500.0,0.00035616,2]
[357524932,1744121450334,-651.86,0.00035616,2]
[357524933,1744121450343,-500.0,0.00035616,2]
[357524934,1744121450352,-500.0,0.00035616,2]
[357524935,1744121450362,-500.0,0.00035616,2]
[357524936,1744121450371,-500.0,0.00035616,2]
[357524937,1744121450381,-516.93,0.00035616,2]
[357524938,1744121450389,-500.0,0.00035616,2]
[357524939,1744121450398,-597.59,0.00035616,2]
[357524940,1744121450407,-500.0,0.00035616,2]
[357524941,1744121450416,-500.0,0.00035616,2]
[357524942,1744121450425,-500.0,0.00035616,2]
[357524943,1744121450434,-500.0,0.00035616,2]
[357524944,1744121450443,-500.0,0.00035616,2]
[357524945,1744121450452,-500.0,0.00035616,2]
[357524946,1744121450463,-955.4,0.00035616,2]
[357524947,1744121450473,-620.16,0.00035616,2]
[357524948,1744121450483,-688.2,0.00035616,2]
[357524949,1744121450492,-500.0,0.00035616,2]
[357524950,1744121450502,-566.02,0.00035616,2]
[357524951,1744121450511,-500.0,0.00035616,2]
[357524952,1744121450520,-500.0,0.00035616,2]
[357524953,1744121450529,-500.0,0.00035616,2]
[357524954,1744121450539,-554.22,0.00035616,2]
[357524955,1744121450548,-500.0,0.00035616,2]
[357524956,1744121450557,-500.0,0.00035616,2]
[357524957,1744121450567,-500.0,0.00035616,2]
[357524958,1744121450576,-500.0,0.00035616,2]
[357524959,1744121450585,-500.0,0.00035616,2]
[357524960,1744121450595,-500.0,0.00035616,2]
[357524961,1744121450604,-500.0,0.00035616,2]
[357524962,1744121450613,-500.0,0.00035616,2]
[357524963,1744121450622,-1001.73,0.00035616,2]
[357524964,1744121450632,-500.0,0.00035616,2]
[357524965,1744121450642,-500.0,0.00035616,2]
[357524966,1744121450651,-2000.0,0.00035616,30]
[357524967,1744121450661,-500.0,0.00035616,2]
[357524968,1744121450670,-500.0,0.00035616,2]
[357524969,1744121450679,-524.59,0.00035616,2]
[357524970,1744121450689,-500.0,0.00035616,2]
[357524971,1744121450698,-646.7,0.00035616,2]
[357524972,1744121450710,-500.0,0.00035616,2]
[357524973,1744121450721,-500.0,0.00035616,2]
[357524974,1744121450730,-563.32576134,0.00035616,2]
[357524975,1744121450739,-500.0,0.00035616,2]
[357524976,1744121450749,-1529.63,0.00035616,2]
[357524977,1744121450760,-500.0,0.00035616,2]
[357524978,1744121450770,-500.0,0.00035616,2]
[357524979,1744121450780,-508.74103182,0.00035616,2]
[357524980,1744121450789,-2358.28,0.00035616,2]
[357524981,1744121450798,-528.14,0.00035616,2]
[357524982,1744121450808,-500.0,0.00035616,2]
[357524983,1744121450818,-500.0,0.00035616,2]
[357524984,1744121450827,-507.88918517,0.00035616,2]
[357524985,1744121450838,-500.0,0.00035616,2]
[357524986,1744121450848,-722.4,0.00035616,2]
[357524987,1744121450857,-500.0,0.00035616,2]
[357524988,1744121450867,-500.0,0.00035616,2]
[357524989,1744121450876,-500.0,0.00035616,2]
[357524990,1744121450885,-500.0,0.00035616,2]
[357524991,1744121450896,-502.53197201,0.00035616,2]
[357524992,1744121450905,-500.0,0.00035616,2]
[357524993,1744121450916,-500.0,0.00035616,2]
[357524994,1744121450926,-500.0,0.00035616,2]
[357524995,1744121450935,-500.0,0.00035616,2]
[357524996,1744121450945,-500.0,0.00035616,2]
[357524997,1744121450956,-797.82,0.00035616,2]
[357524998,1744121450970,-500.0,0.00035616,2]
[357524999,1744121450980,-500.0,0.00035616,2]
[357525000,1744121450989,-500.0,0.00035616,2]
[357525001,1744121450999,-500.0,0.00035616,2]
[357525002,1744121451009,-1176.69,0.00035616,2]
[357525003,1744121451019,-202.56635591,0.00035616,2]
[357525004,1744121451029,-500.0,0.00035616,2]
[357525005,1744121451039,-500.0,0.00035616,2]
[357525006,1744121451048,-500.0,0.00035616,2]
[357525007,1744121451058,-593.3,0.00035616,2]
[357525008,1744121451067,-500.0,0.00035616,2]
[357525009,1744121451077,-570.96,0.00035616,2]
[357525010,1744121451086,-524.58,0.00035616,2]
[357525011,1744121451096,-544.90852575,0.00035616,2]
[357525012,1744121451107,-509.22427603,0.00035616,2]
[357525013,1744121451119,-500.0,0.00035616,2]
[357525014,1744121451128,-544.64799343,0.00035616,2]
[357525015,1744121451138,-507.96668503,0.00035616,2]
[357525016,1744121451147,-500.0,0.00035616,2]
[357525017,1744121451157,-1016.16,0.00035616,2]
[357525018,1744121451167,-500.0,0.00035616,2]
[357525019,1744121451176,-500.0,0.00035616,2]
[357525020,1744121451186,-1056.72,0.00035616,2]
[357525021,1744121451196,-513.8413962,0.00035616,2]
[357525022,1744121451206,-936.4,0.00035616,2]
[357525023,1744121451219,-500.0,0.00035616,2]
[357525024,1744121451229,-170.57827032,0.00035616,2]
[357525026,1744121578903,3594.46285066,0.00042933,30]
[357525027,1744121587200,9023.22,0.00042933,30]
[357525028,1744121591662,151.36,0.00042933,30]
[357525029,1744121982384,5000.0,0.0004293,34]
[357525030,1744122005380,5000.0,0.0004293,35]
[357525031,1744122311552,201367.49915222,0.0004293,120]
[357525032,1744122338432,200.0,0.0004293,30]
[357525033,1744122346253,298895.62364783,0.0004293,120]
[357525039,1744122450007,150.0,0.0004293,30]
[357525041,1744122518525,5300.62266058,0.0004293,120]
[357525048,1744122595417,-7395.78985766,0.00015,2]
[357525051,1744122595497,-6693.68019447,0.00015,2]
[357525155,1744122637599,-278.85718259,0.00015,2]
[357525349,1744122639871,-3170.9020567,0.00015,2]
[357525364,1744122640010,-630.5537716,0.00015,2]
[357525477,1744122642645,-29207.459184,0.00015,2]
[357525480,1744122642664,-2223.57726232,0.00015,2]
[357525487,1744122643271,-23552.77889284,0.00015,2]
[357525488,1744122643281,-137.44518716,0.00019,2]
[357525489,1744122643308,-112.55481284,0.00019,2]
[357525490,1744122643318,-21799.8597165,0.0002,2]
[357525497,1744122645684,-800.81001001,0.0002,2]
[357525498,1744122645784,-5913.65043555,0.0002,2]
[357525499,1744122645920,-1209.73008234,0.0002,2]
[357525501,1744122748167,500.0,0.0004293,30]
[357525502,1744122764554,510.86256754,0.0004293,30]
[357525505,1744123607548,150.0,0.00042945,30]
[357525506,1744123627770,355.06,0.00042945,30]
[357525511,1744123694792,158.21387,0.000248,34]
[357525512,1744123694848,158.21387,0.000273,39]
[357525516,1744123771864,50000.0,0.00042945,30]
[357525519,1744123775282,50000.0,0.00042945,31]
[357525520,1744123806834,1591.0,0.00042945,120]
[357525523,1744123831627,-158.21387,0.000198,23]
[357525524,1744123831636,-23679.18613,0.0002,2]
[357525525,1744123831647,-777.29999998,0.0002,2]
[357525526,1744123831776,-370.76858744,0.0002,2]
[357525527,1744123831787,-501.36406778,0.0002,2]
[357525528,1744123831905,-1370.50192946,0.0002,2]
[357525569,1744123838035,-6951.69225792,0.0002,2]
[357525570,1744123838047,-719.89820748,0.0002,2]
[357525571,1744123838059,-996.17019096,0.0002,2]
[357525647,1744123839984,-775.775,0.0002,2]
[357525648,1744123839996,-10674.31048274,0.0002,2]
[357525649,1744123840008,-314.33,0.0002,2]
[357525650,1744123840033,-648.94443068,0.0002,2]
[357525651,1744123840066,-904.04768182,0.0002,2]
[357525652,1744123840248,-719.1,0.0002,2]
[357525672,1744123845367,-1672.35107214,0.0002,2]
[357525676,1744123845395,-504.76511919,0.0002,2]
[357525705,1744123845746,-368.62800926,0.0002,2]
[357525707,1744123845758,-2436.79189442,0.0002,2]
[357525715,1744123845836,-3955.0567288,0.0002,2]
[357525718,1744123845849,-315.80090445,0.0002,2]
[357525720,1744123845861,-410.24695232,0.0002,2]
[357525722,1744123845875,-662.43854062,0.0002,2]
[357525735,1744123846011,-4221.0,0.0002,2]
[357525739,1744123993667,-158.21387104,0.0002,23]
[357525740,1744124010637,250.0,0.00019,2]
[357525741,1744124077560,174.65145,0.0002,23]
[357525742,1744124171510,504.42507822,0.00042945,120]
[357525743,1744124187196,150.0,0.00042945,30]
[357525745,1744124360314,150.0,0.00042945,30]
[357525746,1744124389264,500.0,0.00042945,30]
[357525747,1744124648087,2703.14,0.00042944,30]
[357525748,1744124713003,1999.99,0.00042944,30]
[357525752,1744125002512,500.0,0.00042944,30]
[357525753,1744125014941,500.0,0.00042944,30]
[357525754,1744125028528,500.0,0.00042944,30]
[357525764,1744125031958,-443.42,0.0002,2]
[357525765,1744125032003,-4620.87527772,0.0002,2]
[357525766,1744125032212,-12055.55516479,0.0002,2]
[357525767,1744125032222,-300.0,0.00021,2]
[357525768,1744125032231,-350.0,0.00023,2]
[357525769,1744125032240,-500.0,0.0002463,2]
[357525770,1744125032249,-400.0,0.00025,2]
[357525771,1744125032260,-250.0,0.00025232,2]
[357525772,1744125032273,-287.22,0.00026849,2]
[357525773,1744125032282,-211.1,0.00026849,2]
[357525774,1744125032292,-359.87,0.00029334,2]
[357525775,1744125032301,-1000.0,0.0003,2]
[357525776,1744125032311,-250.0,0.00031097,2]
[357525777,1744125032320,-186.82,0.00031156,2]
[357525778,1744125032330,-9999.99,0.00031156,2]
[357525779,1744125032339,-1123.53,0.00031156,2]
[357525780,1744125032348,-9999.99,0.00031156,2]
[357525781,1744125032357,-175.63,0.00031169,2]
[357525782,1744125032367,-2000.0,0.00031468,2]
[357525783,1744125032376,-13894.96901864,0.00031468,10]
[357525822,1744125038061,-1017.40129916,0.00031468,10]
[357525823,1744125038255,-788.95,0.00031468,10]
[357525999,1744125040140,-617.64099924,0.00031468,10]
[357526000,1744125040152,-862.94756099,0.00031468,10]
[357526001,1744125040163,-1352.58288122,0.00031468,10]
[357526020,1744125045620,-19721.86824075,0.00031468,10]
[357526021,1744125045630,-4008.7,0.00031468,2]
[357526022,1744125045641,-1459.79,0.00031468,2]
[357526023,1744125045651,-3266.88,0.00031468,2]
[357526024,1744125045661,-999.99,0.00031468,2]
[357526025,1744125045671,-7998.65,0.00031468,2]
[357526026,1744125045680,-9999.99,0.00031468,2]
[357526028,1744125045689,-299.99,0.00031468,12]
[357526029,1744125045699,-3031.1,0.00031468,2]
[357526031,1744125045709,-359.87,0.00031598,2]
[357526032,1744125045719,-1024.94,0.0003176,2]
[357526033,1744125045729,-564.23,0.00031887,2]
[357526034,1744125045739,-10887.54019629,0.00032221,2]
[357526035,1744125045749,-664.08278616,0.00032231,2]
[357526037,1744125045759,-200.0,0.00032252,7]
[357526039,1744125045768,-581.28,0.0003232,2]
[357526041,1744125045779,-980.44,0.0003232,2]
[357526043,1744125045789,-500.0,0.0003232,2]
[357526045,1744125045798,-991.48,0.0003232,2]
[357526047,1744125045809,-769.0,0.0003232,2]
[357526050,1744125045819,-547.15,0.0003232,2]
[357526052,1744125045829,-918.42,0.0003232,2]
[357526054,1744125045838,-1061.81,0.0003232,2]
[357526057,1744125045848,-645.49,0.0003232,2]
[357526058,1744125045858,-1028.94,0.0003232,2]
[357526060,1744125045868,-2025.03,0.0003232,2]
[357526062,1744125045878,-931.13,0.0003232,2]
[357526064,1744125045888,-1052.26,0.0003232,2]
[357526065,1744125045897,-643.01,0.0003232,2]
[357526067,1744125045908,-500.0,0.0003232,2]
[357526068,1744125045917,-1940.37,0.0003232,2]
[357526069,1744125045927,-500.0,0.0003232,2]
[357526070,1744125045937,-674.74,0.0003232,2]
[357526071,1744125045946,-185.02163499,0.0003232,2]
[357526072,1744125045956,-777.99,0.0003232,2]
[357526073,1744125045966,-500.0,0.0003232,2]
[357526074,1744125045976,-1027.58,0.0003232,2]
[357526076,1744125045986,-1355.79,0.0003232,2]
[357526078,1744125045996,-500.0,0.0003232,2]
[357526080,1744125046006,-500.0,0.0003232,2]
[357526082,1744125046017,-1420.7,0.0003232,2]
[357526085,1744125046028,-1123.42,0.0003232,2]
[357526087,1744125046038,-970.01,0.0003232,2]
[357526088,1744125046048,-181.46238807,0.0003232,2]
[357526090,1744125046058,-19989.3655825,0.00032321,2]
[357526091,1744125046070,-2631.37196674,0.00032321,2]
[357526094,1744125046340,-7892.16888,0.00032321,2]
[357526096,1744125046352,-1529.8000001,0.00032321,2]
[357526098,1744125046366,-3778.50059812,0.00032321,2]
[357526100,1744125046377,-9472.81494999,0.00032321,2]
[357526101,1744125046389,-31406.0,0.00032321,2]
[357526102,1744125046400,-905.09780869,0.00032321,2]
[357526103,1744125046412,-37436.53781464,0.00032321,2]
[357526104,1744125046423,-4000.0,0.00032321,2]
[357526105,1744125046447,-3153.33201276,0.00032321,2]
[357526106,1744125046456,-4024.46014888,0.00032321,2]
[357526107,1744125046467,-3077.9930686,0.00032321,2]
[357526126,1744125213303,500.0,0.00032876,120]
[357526127,1744125213551,500.0,0.00032876,120]
[357526128,1744125213831,500.0,0.00032879,120]
[357526129,1744125239512,500.0,0.00042944,30]
[357526130,1744125427075,155.32765476,0.00042944,30]
[357526131,1744125440304,500.0,0.00032331,120]
[357526132,1744125440938,200.0,0.00042944,30]
[357526134,1744125638736,244.40523,0.00027,120]
[357526135,1744125816257,250.0,0.00019,2]
[357526136,1744125890883,500.0,0.00042943,30]
[357526137,1744125933300,150.0,0.00042943,30]
[357526140,1744126027819,218.74417505,0.000153,2]
[357526145,1744126103826,-800.0,0.000199,7]
[357526146,1744126103850,-376.27844952,0.00019973,2]
[357526147,1744126103870,-406.60970003,0.00019999,2]
[357526148,1744126103895,-500.0,0.00019999,2]
[357526149,1744126103923,-500.0,0.00019999,2]
[357526150,1744126103947,-500.0,0.00019999,2]
[357526151,1744126103971,-500.0,0.00019999,2]
[357526152,1744126103996,-211.86093727,0.00019999,2]
[357526153,1744126104022,-500.0,0.00019999,2]
[357526154,1744126104047,-500.0,0.00019999,2]
[357526155,1744126104072,-500.0,0.00019999,2]
[357526156,1744126104096,-160.0,0.00019999,2]
[357526157,1744126104120,-500.0,0.00019999,2]
[357526158,1744126104145,-500.0,0.00019999,2]
[357526159,1744126104172,-109975.49065218,0.0002,2]
[357526160,1744126104195,-163.31614926,0.0002,2]
[357526161,1744126104220,-577605.44411174,0.0002,2]
[357526169,1744126182336,500.0,0.00032876,120]
[357526170,1744126182570,500.0,0.00032876,120]
[357526171,1744126182808,500.0,0.00032876,120]
[357526172,1744126225867,-171.44245973,0.000199,2]
[357526173,1744126225889,-326.33714145,0.00019973,2]
[357526174,1744126225914,-273011.23867599,0.0002,2]
[357526175,1744126225935,-10233.08345412,0.0002,2]
[357526176,1744126225957,-2008.30443461,0.0002,2]
[357526177,1744126225978,-300.30559924,0.0002,2]
[357526178,1744126226003,-81649.28823486,0.0002001,2]
[357526186,1744126232246,-2093.02715699,0.0002001,2]
[357526187,1744126232258,-15235.62619511,0.0002001,2]
[357526188,1744126232268,-8970.4886296,0.0002001,2]
[357526189,1744126232278,-4946.0284376,0.0002001,2]
[357526190,1744126232292,-5772.0,0.0002001,2]
[357526191,1744126232302,-21864.42232388,0.000207,2]
[357526192,1744126232311,-300.0,0.00021,2]
[357526194,1744126232321,-19478.04266297,0.00021,2]
[357526196,1744126232330,-151.0,0.00021,2]
[357526198,1744126232339,-151.0,0.00021,2]
[357526200,1744126232350,-151.0,0.00021,2]
[357526202,1744126232359,-151.0,0.00021,2]
[357526204,1744126232368,-151.0,0.00021,2]
[357526205,1744126232378,-154.960357,0.00021,2]
[357526206,1744126232388,-151.0,0.00021,2]
[357526207,1744126232397,-2000.0,0.00021362,4]
[357526208,1744126232406,-7031.67595568,0.000217,2]
[357526209,1744126232416,-5434.0,0.000218,2]
[357526210,1744126232426,-2000.0,0.00022225,4]
[357526211,1744126232436,-500.0,0.00022467,2]
[357526212,1744126232445,-449.39835575,0.00022467,2]
[357526213,1744126232455,-33018.12504971,0.000225,2]
[357526214,1744126232464,-151.0,0.000225,7]
[357526215,1744126232474,-151.0,0.000225,7]
[357526216,1744126232483,-151.0,0.000225,7]
[357526217,1744126232493,-151.0,0.000225,7]
[357526218,1744126232502,-151.0,0.000225,7]
[357526219,1744126232511,-2000.0,0.00023089,4]
[357526220,1744126232520,-8114.36513831,0.000232,2]
[357526221,1744126232530,-152.179636,0.000232,7]
[357526222,1744126232541,-2000.0,0.00023953,4]
[357526223,1744126232550,-151.52,0.0002399,2]
[357526224,1744126232560,-51538.99788044,0.00024,2]
[357526225,1744126232569,-5000.0,0.00024,5]
[357526226,1744126232580,-151.0,0.00024,7]
[357526227,1744126232590,-151.0,0.00024,7]
[357526228,1744126232602,-392.323516,0.00024,7]
[357526229,1744126232612,-151.0,0.00024,7]
[357526230,1744126232622,-151.0,0.00024,7]
[357526231,1744126232631,-151.0,0.00024,7]
[357526232,1744126232641,-15508.3097926,0.00024,2]
[357526233,1744126232661,-2093.81236285,0.00024,2]
[357526247,1744126238620,-801.67432801,0.00024,2]
[357526251,1744126238655,-392.685,0.00024,2]
[357526252,1744126238826,-164.97045788,0.00024,2]
[357526253,1744126240627,-271.95809033,0.00024,2]
[357526254,1744126240640,-703.3978942,0.00024,2]
[357526266,1744126245028,-2904.07956348,0.00024,2]
[357526273,1744126246510,-151.0,0.000232,7]
[357526274,1744126246534,-1296.23729483,0.00024,2]
[357526275,1744126246572,-650.89589629,0.00024,2]
[357526276,1744126246584,-15525.41538508,0.00024,2]
[357526277,1744126246597,-151.0,0.00024,7]
[357526278,1744126246607,-226.96714,0.00024,7]
[357526279,1744126246617,-151.0,0.00024,7]
[357526281,1744126246627,-151.0,0.00024,7]
[357526282,1744126246636,-151.0,0.00024,7]
[357526283,1744126246646,-219.638522,0.00024,7]
[357526284,1744126246656,-151.0,0.00024,7]
[357526285,1744126246665,-151.0,0.00024,7]
[357526286,1744126246675,-151.0,0.00024,7]
[357526287,1744126246686,-151.0,0.00024,7]
[357526288,1744126246696,-151.52,0.0002479,2]
[357526289,1744126246706,-284.62679002,0.00024799,2]
[357526290,1744126246716,-450.0,0.00024799,2]
[357526291,1744126246726,-450.0,0.00024799,2]
[357526292,1744126246735,-500.0,0.00024799,2]
[357526293,1744126246745,-500.0,0.00024799,2]
[357526294,1744126246754,-500.0,0.00024799,2]
[357526295,1744126246764,-500.0,0.00024799,2]
[357526296,1744126246774,-500.0,0.00024799,2]
[357526297,1744126246783,-410.30265609,0.00024799,2]
[357526298,1744126246793,-290095.236731,0.000248,2]
[357526300,1744126246802,-151.0,0.000248,7]
[357526301,1744126246812,-151.0,0.000248,7]
[357526303,1744126246821,-151.0,0.000248,7]
[357526305,1744126246831,-151.0,0.000248,7]
[357526307,1744126246840,-151.0,0.000248,7]
[357526309,1744126246850,-2000.0,0.00024817,4]